bitfinex-derivatives/quotes_SOLF0:USTF0_20251202
["timestamp","ask_amount","ask_price","bid_price","bid_amount"]
[1764664084247,0.05358902,126.31,126.29,3.47369275]
[1764664085245,0.05358902,126.31,126.29,0.05369275]
[1764664085246,9.4563,126.3,126.29,0.05369275]
[1764664101550,7.1263,126.3,126.29,3.14369275]
[1764664102260,9.4563,126.3,126.29,0.05369275]
[1764664102951,7.1263,126.3,126.29,3.14369275]
[1764664104561,9.4563,126.3,126.29,0.05369275]
[1764664105863,7.1263,126.3,126.29,3.14369275]
[1764664106065,9.4583,126.27,126.24,3.09]
[1764664106457,2.33,126.27,126.24,3.09]
[1764664107162,2.38078528,126.27,126.24,3.14275915]
[1764664107360,7.1286,126.26,126.24,3.14275915]
[1764664109360,9.4586,126.26,126.24,3.14275915]
[1764664109765,9.4592,126.25,126.24,0.05275915]
[1764664123679,2.34,126.23,126.2,3.29]
[1764664124085,9.4705,126.23,126.2,3.29]
[1764664124575,9.52093875,126.23,126.2,3.34980116]
[1764664126278,2.34,126.22,126.2,3.34980116]
[1764664129185,2.34,126.21,126.2,0.05980116]
[1764664129484,2.34,126.2,126.16,10.4237]
[1764664130379,2.39840816,126.19,126.17,0.06081758]
[1764664131379,2.39840816,126.19,126.17,3.35081758]
[1764664132786,2.39840816,126.19,126.17,0.06081758]
[1764664132977,2.39840816,126.19,126.17,3.35081758]
[1764664133783,0.05840816,126.19,126.17,3.35081758]
[1764664141592,0.05840816,126.19,126.17,10.48441758]
[1764664142197,0.05840816,126.19,126.18,3.29]
[1764664144895,0.05840816,126.19,126.18,10.4231]
[1764664149497,9.4707,126.23,126.2,3.26]
[1764664149697,9.4707,126.23,126.21,71.08]
[1764664150399,9.52696274,126.23,126.21,71.13595987]
[1764664153604,2.39626274,126.23,126.22,3.26]
[1764664153900,2.39626274,126.23,126.21,67.87595987]
[1764664154104,2.39626274,126.23,126.21,71.13595987]
[1764664154896,0.05626274,126.23,126.22,3.26]
[1764664167416,0.05626274,126.23,126.22,5.64531653]
[1764664171724,0.05626274,126.23,126.22,3.26]
[1764664176228,0.05626274,126.23,126.22,5.64531653]
[1764664176938,0.05626274,126.23,126.22,3.26]
[1764664179439,0.05626274,126.23,126.22,10.3909]
[1764664186634,0.05626274,126.23,126.22,3.26]
[1764664186635,2.39626274,126.23,126.22,3.26]
[1764664186937,0.05626274,126.23,126.22,71.2]
[1764664192245,2.39626274,126.23,126.22,71.2]
[1764664192636,0.05626274,126.23,126.22,71.2]
[1764664196245,0.05626274,126.23,126.22,3.42]
[1764664201151,0.05626274,126.23,126.22,71.2]
[1764664205348,0.05626274,126.23,126.18,19.62606471]
[1764664205349,7.1314,126.22,126.19,3.42]
[1764664205952,7.1314,126.21,126.19,3.42]
[1764664206553,7.1314,126.21,126.19,3.47450905]
[1764664206748,2.34,126.22,126.19,3.47450905]
[1764664206954,0.05626274,126.23,126.19,3.47450905]
[1764664208154,9.4717,126.21,126.19,3.47450905]
[1764664208459,2.34,126.2,126.19,0.05450905]
[1764664211048,7.1362,126.13,126.08,1.37865462]
[1764664211252,2.28,126.15,126.11,3.37]
[1764664212252,2.33156162,126.14,126.12,3.42806441]
[1764664213148,0.05156162,126.14,126.12,3.42806441]
[1764664219964,7.18696162,126.14,126.12,3.42806441]
[1764664221363,9.46696162,126.14,126.12,0.05806441]
[1764664221556,2.22,126.11,126.07,3.37]
[1764664222764,7.19618069,126.1,126.07,3.37]
[1764664223261,0.05808069,126.1,126.07,3.37]
[1764664224863,7.19578069,126.1,126.07,3.37]
[1764664226264,7.19578069,126.1,126.07,71.19]
[1764664226265,7.1384,126.09,126.07,71.19]
[1764664226563,7.1384,126.09,126.08,3.37]
[1764664227958,9.3584,126.09,126.07,3.37]
[1764664229063,7.1384,126.09,126.07,3.37]
[1764664229667,7.19578069,126.1,126.07,3.37]
[1764664230169,9.41578069,126.1,126.07,3.37]
[1764664230357,7.19578069,126.1,126.07,3.37]
[1764664230865,7.19578069,126.1,126.08,3.37]
[1764664232365,2.22,126.08,126.06,3.37]
[1764664233066,7.1388,126.08,126.06,3.37]
[1764664235165,2.22,126.07,126.05,3.22]
[1764664235467,0.0562799,126.07,126.05,3.22]
[1764664238354,0.0562799,126.07,126.06,3.22]
[1764664242966,2.2762799,126.07,126.05,71.13]
[1764664244470,0.0562799,126.07,126.05,71.13]
[1764664244667,0.0562799,126.07,126.06,3.29]
[1764664245276,2.2762799,126.07,126.05,67.84]
[1764664245575,9.4158799,126.07,126.05,3.29]
[1764664245967,2.22,126.06,126.04,71.13]
[1764664246270,9.4158799,126.07,126.05,3.29]
[1764664251380,9.3606,126.05,126.03,71.13]
[1764664252271,7.141,126.04,126.03,71.13]
[1764664253879,7.141,126.04,125.94,130.78936471]
[1764664253880,2.22,126.05,126.01,3.29]
[1764664254090,2.27406761,126.04,126.01,3.29]
[1764664254279,0.05406761,126.04,126.01,3.29]
[1764664255278,0.05406761,126.04,126.01,5.6809244]
[1764664255489,0.05406761,126.04,126.02,3.29]
[1764664255678,7.1386,126.09,126.04,3.29]
[1764664256079,2.27,126.08,126.05,3.29]
[1764664256771,2.32461673,126.08,126.05,0.06034308]
[1764664256975,9.4096,126.07,126.05,0.06034308]
[1764664257479,2.27,126.06,126.05,0.06034308]
[1764664257876,2.32461673,126.08,126.05,3.35034308]
[1764664258682,118.197,126.07,126.05,0.06034308]
[1764664258886,2.27,126.06,126.05,0.06034308]
[1764664260386,4.6609244,126.06,126.05,0.06034308]
[1764664260586,6.2409244,126.06,126.05,0.06034308]
[1764664260785,2.27,126.04,126.01,3.29]
[1764664261086,115.7345244,126.06,126.01,3.29]
[1764664261278,2.27,126.05,126.01,3.29]
[1764664261982,2.32345168,126.04,126.01,3.29]
[1764664262889,0.05345168,126.04,126.01,3.29]
[1764664263490,2.32345168,126.04,126.01,3.29]
[1764664264384,0.05345168,126.04,126.01,3.29]
[1764664265288,2.27,126.03,125.98,122.3339]
[1764664265488,2.27,126.03,125.96,111.1483]
[1764664265489,2.27,126.02,125.99,3.29]
[1764664265688,0.0514099,126.02,125.99,3.29]
[1764664266996,0.0514099,126.02,125.99,5.6809244]
[1764664267197,0.0514099,126.02,126.0,3.29]
[1764664268605,0.0514099,126.02,126.01,3.31]
[1764664269108,9.4104,126.06,126.01,3.31]
[1764664270106,0.05565703,126.05,126.02,0.05455456]
[1764664270310,0.05565703,126.05,126.03,3.31]
[1764664271208,2.28,126.04,126.02,3.36455456]
[1764664271400,9.47635703,126.05,126.02,3.36455456]
[1764664271602,2.28,126.04,126.02,3.36455456]
[1764664271903,9.4212,126.04,126.02,0.05455456]
[1764664272110,2.28,126.03,126.02,0.05455456]
[1764664276116,4.6709244,126.03,126.02,0.05455456]
[1764664278622,9.4236,126.0,125.98,3.31]
[1764664278806,2.28,125.99,125.94,3.31]
[1764664279125,2.28,126.0,125.94,3.31]
[1764664279611,2.33899241,125.98,125.94,3.31]
[1764664279818,2.28,125.96,125.9,3.31]
[1764664280013,0.05032303,125.94,125.9,3.31]
[1764664280315,0.05032303,125.94,125.91,3.31]
[1764664280511,111.1305,125.99,125.93,3.31]
[1764664280717,7.1436,126.0,125.94,3.31]
[1764664280910,2.33,126.0,125.95,67.96]
[1764664281217,2.33,126.0,125.96,3.31]
[1764664281218,7.1443,125.99,125.96,3.31]
[1764664281610,7.19924812,125.99,125.96,3.36469431]
[1764664281810,0.05494812,125.99,125.97,3.31]
[1764664282513,0.05494812,125.99,125.98,3.31]
[1764664285316,7.1446,125.98,125.96,3.36469431]
[1764664285521,9.4746,125.98,125.96,3.36469431]
[1764664285725,7.1446,125.98,125.96,3.36469431]
[1764664286514,9.4746,125.98,125.96,3.36469431]
[1764664286823,7.1446,125.98,125.96,3.36469431]
[1764664288327,0.05494812,125.99,125.96,3.36469431]
[1764664289209,7.19884812,125.99,125.96,3.36469431]
[1764664289525,0.05494812,125.99,125.96,5.75561871]
[1764664289715,0.05494812,125.99,125.97,3.31]
[1764664291329,9.4712,126.04,125.98,3.31]
[1764664292124,7.1408,126.05,125.99,3.31]
[1764664292329,2.38,126.05,126.01,3.31]
[1764664292526,0.05296328,126.04,126.02,0.0540056]
[1764664292829,0.05296328,126.04,126.02,3.3640056]
[1764664293529,7.19416328,126.04,126.02,3.3640056]
[1764664293823,9.57416328,126.04,126.02,3.3640056]
[1764664295227,9.57416328,126.04,126.02,71.3240056]
[1764664295527,2.43296328,126.04,126.02,71.3240056]
[1764664296729,0.05296328,126.04,126.03,3.32]
[1764664297225,0.05296328,126.04,126.02,67.9940056]
[1764664297528,0.05296328,126.04,126.02,71.3140056]
[1764664299132,7.19396328,126.04,126.02,71.3140056]
[1764664300230,7.19396328,126.04,126.02,3.3740056]
[1764664300432,7.19396328,126.04,126.02,71.2940056]
[1764664300935,7.19396328,126.04,126.03,3.25]
[1764664306837,0.05296328,126.04,126.03,3.25]
[1764664307336,0.05296328,126.04,126.03,71.15]
[1764664307539,7.1387,126.09,126.03,71.15]
[1764664307540,9.5187,126.09,126.04,3.25]
[1764664307735,2.38,126.11,126.06,3.25]
[1764664308540,2.42997962,126.1,126.07,3.30309618]
[1764664308927,2.42997962,126.1,126.08,3.25]
[1764664310147,0.04997962,126.1,126.08,3.25]
[1764664310745,11.9550244,126.17,126.1,3.25]
[1764664310942,4.8209244,126.17,126.1,3.25]
[1764664311442,4.8209244,126.17,126.09,2.3909244]
[1764664311443,2.43,126.16,126.12,3.25]
[1764664311833,2.43,126.14,126.13,0.05595916]
[1764664315837,0.05242575,126.15,126.13,3.30595916]
[1764664320645,2.43,126.2,126.13,3.30595916]
[1764664321244,2.43,126.2,126.16,3.25]
[1764664321245,7.1325,126.2,126.16,3.25]
[1764664321448,9.6125,126.2,126.16,3.25]
[1764664321640,0.05309139,126.19,126.17,3.31031993]
[1764664321833,2.53309139,126.19,126.17,0.06031993]
[1764664322839,9.66599139,126.19,126.17,0.06031993]
[1764664323246,2.48,126.18,126.17,0.06031993]
[1764664323645,9.66599139,126.19,126.17,0.06031993]
[1764664324041,2.48,126.18,126.17,0.06031993]
[1764664325450,7.18599139,126.19,126.17,0.06031993]
[1764664325650,9.66599139,126.19,126.17,0.06031993]
[1764664326043,7.18599139,126.19,126.17,3.31031993]
[1764664326450,0.05309139,126.19,126.17,3.31031993]
[1764664327354,2.48,126.18,126.17,0.06031993]
[1764664327554,2.48,126.13,126.05,3.25]
[1764664327743,2.48,126.1,126.06,7.1398]
[1764664327943,2.48,126.1,126.05,3.25]
[1764664328548,10.86979335,126.11,126.03,111.0916]
[1764664328549,2.534908,126.09,126.06,3.40316501]
[1764664328753,0.054908,126.09,126.06,3.40316501]
[1764664329549,0.054908,126.09,126.08,3.35]
[1764664329752,111.0,126.14,126.08,3.35]
[1764664330056,7.137,126.12,126.08,3.35]
[1764664330949,0.05024657,126.11,126.09,3.40416378]
[1764664331445,7.18754657,126.11,126.09,3.40416378]
[1764664332649,9.66754657,126.11,126.09,0.05416378]
[1764664332850,9.66754657,126.11,126.09,68.07416378]
[1764664333447,9.66754657,126.11,126.09,0.05416378]
[1764664333755,0.05024657,126.11,126.09,3.40416378]
[1764664334347,0.05024657,126.11,126.1,68.02]
[1764664338254,0.05024657,126.11,126.09,3.40416378]
[1764664338458,0.05024657,126.11,126.1,68.0]
[1764664340859,0.05024657,126.11,126.1,71.41]
[1764664341451,0.05024657,126.11,126.1,68.0]
[1764664342855,7.18744657,126.11,126.1,68.0]
[1764664343562,7.18744657,126.11,126.1,71.41]
[1764664346163,7.1376,126.1,126.09,0.05416378]
[1764664346350,9.6076,126.1,126.09,0.05416378]
[1764664346557,9.6076,126.1,126.09,68.05416378]
[1764664348556,9.6076,126.1,126.09,0.05416378]
[1764664348764,9.6076,126.1,126.09,68.03416378]
[1764664348966,7.1376,126.1,126.09,71.44416378]
[1764664351466,0.05024657,126.11,126.1,3.41]
[1764664352355,113.4513,126.16,126.1,3.41]
[1764664352559,110.9651,126.18,126.1,3.41]
[1764664353158,7.1343,126.16,126.11,7.1369]
[1764664353467,0.05072962,126.15,126.12,3.46770246]
[1764664354165,0.05072962,126.15,126.12,10.60410246]
[1764664354364,0.05072962,126.15,126.13,3.15]
[1764664355770,0.05072962,126.15,126.14,65.15]
[1764664356660,0.05072962,126.15,126.14,133.11]
[1764664361774,0.05072962,126.15,126.14,71.11]
[1764664366376,7.1337,126.17,126.15,3.13]
[1764664366974,7.1331,126.18,126.15,3.13]
[1764664367279,2.53,126.22,126.15,3.13]
[1764664367480,0.06049661,126.2,126.18,3.13]
[1764664367674,0.06049661,126.2,126.19,67.92]
[1764664368175,0.06049661,126.2,126.19,71.05]
[1764664371781,2.59049661,126.2,126.17,3.18653098]
[1764664371984,2.59049661,126.2,126.19,67.9]
[1764664372577,0.06049661,126.2,126.19,67.9]
[1764664372777,0.06049661,126.2,126.19,71.03]
[1764664374272,9.6602,126.24,126.2,3.13]
[1764664374478,7.1302,126.24,126.2,3.13]
[1764664374676,4.91632687,126.27,126.2,3.13]
[1764664375088,9.6593,126.25,126.21,3.13]
[1764664375282,0.05238073,126.24,126.22,3.18868993]
[1764664376981,0.05238073,126.24,126.23,3.13]
[1764664377187,7.1276,126.28,126.23,3.13]
[1764664377385,7.1276,126.28,126.25,3.13]
[1764664377879,9.6576,126.28,126.25,3.13]
[1764664378286,0.06049068,126.28,126.25,3.18544592]
[1764664378984,7.18839068,126.28,126.25,3.18544592]
[1764664379782,0.06049068,126.28,126.25,3.18544592]
[1764664380490,0.06049068,126.28,126.26,71.01]
[1764664381883,0.06049068,126.28,126.27,67.88]
[1764664382391,0.06049068,126.28,126.26,3.13]
[1764664382590,0.06049068,126.28,126.27,67.86]
[1764664384384,0.06049068,126.28,126.27,70.99]
[1764664385386,0.06049068,126.28,126.27,70.97]
[1764664388293,7.126,126.31,126.28,3.13]
[1764664389191,7.18313962,126.31,126.28,3.183441]
[1764664390201,0.05713962,126.31,126.28,3.183441]
[1764664391101,0.05713962,126.31,126.28,10.310841]
[1764664391398,0.05713962,126.31,126.29,3.15]
[1764664392699,0.05713962,126.31,126.3,70.97]
[1764664394793,2.52,126.3,126.28,3.203441]
[1764664394988,2.52,126.3,126.29,67.8]
[1764664395600,9.6463,126.3,126.29,67.8]
[1764664396001,7.1263,126.3,126.29,67.8]
[1764664397309,0.05713962,126.31,126.29,70.95]
[1764664397702,0.05713962,126.31,126.3,3.15]
[1764664398109,2.57713962,126.31,126.28,3.203441]
[1764664398304,2.57713962,126.31,126.3,67.82]
[1764664398907,9.70293962,126.31,126.3,67.82]
[1764664400104,9.70293962,126.31,126.29,71.07]
[1764664401113,7.18293962,126.31,126.29,71.07]
[1764664404514,7.18293962,126.31,126.29,3.25]
[1764664404713,7.18293962,126.31,126.3,67.82]
[1764664405416,7.18293962,126.31,126.3,71.07]
[1764664406816,0.05713962,126.31,126.3,71.07]
[1764664407209,115.75532687,126.38,126.31,3.25]
[1764664407819,7.1243,126.34,126.31,3.25]
[1764664408012,9.7043,126.34,126.32,3.25]
[1764664408210,9.75974081,126.34,126.32,71.12193801]
[1764664408610,7.17974081,126.34,126.32,3.30193801]
[1764664408810,7.17974081,126.34,126.33,67.82]
[1764664409906,2.58,126.33,126.32,0.05193801]
[1764664411908,4.96632687,126.33,126.32,0.05193801]
[1764664414730,4.96632687,126.33,126.29,71.07]
[1764664414731,9.707,126.29,126.26,3.25]
[1764664414922,9.707,126.29,126.27,71.05]
[1764664415828,9.7075,126.28,126.27,0.05284074]
[1764664416227,7.18713309,126.29,126.27,3.30284074]
[1764664416616,0.05993309,126.29,126.27,3.30284074]
[1764664417022,9.7075,126.28,126.27,0.05284074]
[1764664417728,7.1275,126.28,126.27,0.05284074]
[1764664417914,9.7075,126.28,126.27,0.05284074]
[1764664418119,7.1297,126.25,126.22,3.4]
[1764664418323,7.1297,126.25,126.23,71.22]
[1764664418524,7.1297,126.25,126.23,3.4]
[1764664418728,7.1297,126.25,126.23,71.22]
[1764664419228,7.18907288,126.25,126.23,71.27329748]
[1764664419426,9.76907288,126.25,126.23,0.05329748]
[1764664420628,2.58,126.24,126.23,0.05329748]
[1764664422924,2.58,126.21,126.15,3.25]
[1764664423121,2.58,126.21,126.17,3.25]
[1764664424025,0.05466351,126.2,126.18,3.30467801]
[1764664425834,0.05466351,126.2,126.18,5.69100488]
[1764664426126,0.05466351,126.2,126.19,3.25]
[1764664430337,0.05466351,126.2,126.19,71.09]
[1764664431039,7.1302,126.24,126.2,3.25]
[1764664431235,7.1305,126.23,126.2,3.25]
[1764664431943,0.05631342,126.23,126.2,3.30192549]
[1764664432139,0.05631342,126.23,126.21,3.25]
[1764664437643,0.05631342,126.23,126.21,10.3813]
[1764664437846,7.1287,126.26,126.22,3.25]
[1764664438843,0.05539832,126.25,126.23,0.05867362]
[1764664439144,0.05539832,126.25,126.24,71.07]
[1764664444237,7.1276,126.28,126.25,3.25]
[1764664445249,7.18799236,126.28,126.25,3.25]
[1764664446048,0.06039236,126.28,126.25,3.25]
[1764664446439,2.75039236,126.28,126.26,67.8]
[1764664446746,2.75039236,126.28,126.26,71.10177628]
[1764664446948,0.06039236,126.28,126.26,71.10177628]
[1764664447250,7.18809236,126.28,126.27,3.25]
[1764664448047,0.06039236,126.28,126.27,3.25]
[1764664455156,0.06039236,126.28,126.27,67.78]
[1764664457255,0.06039236,126.28,126.27,71.01]
[1764664467163,0.06039236,126.28,126.27,3.23]
[1764664467459,0.06039236,126.28,126.27,71.01]
[1764664470962,2.69,126.27,126.26,0.05177628]
[1764664471671,0.06039236,126.28,126.26,3.22177628]
[1764664471854,0.06039236,126.28,126.27,3.17]
[1764664473267,7.18789236,126.28,126.27,3.17]
[1764664479666,7.128,126.27,126.26,3.26177628]
[1764664479865,7.128,126.27,126.26,71.04177628]
[1764664480865,7.18789236,126.28,126.27,3.21]
[1764664486987,0.06039236,126.28,126.27,3.21]
[1764664489080,9.87789236,126.28,126.26,3.26177628]
[1764664489279,9.87789236,126.28,126.27,67.78]
[1764664489679,7.18789236,126.28,126.27,70.99]
[1764664491180,0.06039236,126.28,126.27,70.99]
[1764664492385,7.18789236,126.28,126.27,70.99]
[1764664493076,9.818,126.27,126.26,0.05177628]
[1764664493771,7.128,126.27,126.26,0.05177628]
[1764664495080,9.818,126.27,126.26,0.05177628]
[1764664501484,7.128,126.27,126.26,3.26177628]
[1764664501881,7.128,126.27,126.26,71.04177628]
[1764664508990,2.75039236,126.28,126.26,71.04177628]
[1764664510792,0.06039236,126.28,126.27,3.4]
[1764664511094,7.18789236,126.28,126.27,3.4]
[1764664511793,0.06039236,126.28,126.27,3.4]
[1764664512091,2.69,126.32,126.27,3.4]
[1764664512296,7.1261,126.31,126.28,3.4]
[1764664512498,110.8167,126.35,126.28,3.4]
[1764664512499,113.5067,126.35,126.28,3.4]
[1764664512691,115.89047578,126.35,126.28,3.4]
[1764664513194,0.0592572,126.33,126.31,3.4]
[1764664513402,7.1843572,126.33,126.31,71.18]
[1764664514306,7.1843572,126.33,126.32,3.4]
[1764664516996,0.0592572,126.33,126.32,3.4]
[1764664518797,2.69,126.37,126.32,3.4]
[1764664519400,7.1236,126.35,126.32,3.4]
[1764664519906,7.18138778,126.35,126.32,3.45083862]
[1764664520613,0.05778778,126.35,126.32,5.8346144]
[1764664520912,0.05778778,126.35,126.33,3.19]
[1764664521508,7.1215,126.39,126.35,3.19]
[1764664521708,7.1215,126.39,126.37,3.19]
[1764664522011,7.1206,126.41,126.37,3.19]
[1764664522407,7.1206,126.41,126.39,3.19]
[1764664524413,9.8706,126.41,126.39,3.19]
[1764664524806,9.8706,126.41,126.39,70.93]
[1764664526511,7.1206,126.41,126.4,3.19]
[1764664526901,9.8693,126.43,126.4,3.19]
[1764664527105,2.75,126.42,126.4,3.19]
[1764664528113,7.1193,126.43,126.4,3.19]
[1764664528421,9.8693,126.43,126.4,3.19]
[1764664529621,2.75,126.42,126.4,3.19]
[1764664529917,9.8693,126.43,126.4,3.19]
[1764664530311,9.8693,126.43,126.41,67.72]
[1764664530511,9.8693,126.43,126.41,70.9707505]
[1764664530821,2.75,126.44,126.42,3.19]
[1764664531206,2.75,126.44,126.41,70.9707505]
[1764664531720,9.8686,126.44,126.41,70.9707505]
[1764664532317,7.1191,126.43,126.41,70.9707505]
[1764664532524,9.8691,126.43,126.41,70.9707505]
[1764664533018,2.74,126.47,126.42,3.09]
[1764664533619,7.1174,126.46,126.42,3.09]
[1764664533819,2.74,126.45,126.42,3.09]
[1764664534005,2.74,126.45,126.42,3.14743651]
[1764664534207,9.8579,126.45,126.42,3.14743651]
[1764664535413,2.74,126.45,126.42,3.14743651]
[1764664536016,2.74,126.45,126.42,70.84743651]
[1764664536212,2.74,126.45,126.43,3.09]
[1764664536716,7.1185,126.44,126.43,3.09]
[1764664537921,2.74,126.43,126.42,0.05743651]
[1764664540326,12.24277578,126.43,126.42,0.05743651]
[1764664545020,2.74,126.39,126.36,3.17]
[1764664545214,2.74,126.39,126.37,3.17]
[1764664545923,9.91488615,126.39,126.37,3.22439724]
[1764664547119,7.1218,126.38,126.37,3.22439724]
[1764664547326,9.8618,126.38,126.37,0.05439724]
[1764664550831,9.8618,126.38,126.37,0.05439724]
[1764664558824,9.8618,126.38,126.31,3.17]
[1764664558825,2.74,126.34,126.31,3.17]
[1764664559424,7.1252,126.32,126.31,3.17]
[1764664559935,2.74,126.32,126.3,3.22410409]
[1764664560335,7.1258,126.31,126.3,3.22410409]
[1764664562427,7.1258,126.31,126.3,70.94410409]
[1764664566630,7.1258,126.31,126.3,3.22410409]
[1764664566830,7.1258,126.31,126.3,70.94410409]
[1764664568941,7.1258,126.31,126.3,3.22410409]
[1764664569240,7.1258,126.31,126.3,70.94410409]
[1764664570034,7.18285434,126.33,126.31,3.27]
[1764664570226,0.05805434,126.33,126.31,3.27]
[1764664572141,0.05805434,126.33,126.32,3.27]
[1764664572645,2.80805434,126.33,126.3,3.32410409]
[1764664572941,2.80805434,126.33,126.31,67.72]
[1764664573141,7.1253,126.32,126.31,70.99]
[1764664574233,2.80805434,126.33,126.31,70.99]
[1764664575444,9.93275434,126.33,126.31,70.99]
[1764664579750,2.75,126.31,126.3,0.05410409]
[1764664580341,9.8758,126.31,126.3,0.05410409]
[1764664586651,2.75,126.28,126.25,3.27]
[1764664586851,2.75,126.28,126.25,71.01]
[1764664587651,7.128,126.27,126.25,71.06825913]
[1764664587852,7.128,126.27,126.26,3.27]
[1764664588846,7.128,126.27,126.25,71.06825913]
[1764664589853,7.128,126.27,126.26,3.27]
[1764664592258,2.81067987,126.28,126.26,3.27]
[1764664592259,0.06067987,126.28,126.26,3.27]
[1764664592748,7.18867987,126.28,126.26,3.27]
[1764664594358,0.06067987,126.28,126.26,10.3985]
[1764664594556,0.06067987,126.28,126.27,3.28]
[1764664599360,0.06067987,126.28,126.27,71.02]
[1764664602860,0.06067987,126.28,126.25,7.18735913]
[1764664603066,2.81067987,126.28,126.26,71.12]
[1764664606169,0.06067987,126.28,126.27,3.38]
[1764664607267,2.81067987,126.28,126.26,71.12]
[1764664608359,0.06067987,126.28,126.27,3.38]
[1764664608761,9.93817987,126.28,126.27,3.38]
[1764664608971,2.75,126.27,126.26,67.74]
[1764664609164,2.81067987,126.28,126.26,67.74]
[1764664609559,2.81067987,126.28,126.26,71.12]
[1764664609759,7.128,126.27,126.26,71.12]
[1764664610363,0.06067987,126.28,126.27,3.38]
[1764664612272,7.18817987,126.28,126.27,3.38]
[1764664616170,7.18817987,126.28,126.27,71.12]
[1764664617874,0.06067987,126.28,126.27,71.12]
[1764664619177,7.18817987,126.28,126.27,71.12]
[1764664626687,7.18817987,126.28,126.27,3.38]
[1764664630287,0.06067987,126.28,126.27,3.38]
[1764664632382,7.1267,126.3,126.27,3.38]
[1764664632582,9.8767,126.3,126.28,67.74]
[1764664632981,7.1269,126.29,126.28,71.12]
[1764664633186,2.75,126.29,126.25,19.73136086]
[1764664633387,2.80038051,126.28,126.26,71.17289761]
[1764664633986,2.80038051,126.28,126.26,3.43289761]
[1764664634187,2.80038051,126.28,126.26,71.17289761]
[1764664634387,7.128,126.27,126.26,71.17289761]
[1764664639390,9.878,126.27,126.26,0.05289761]
[1764664640892,7.128,126.27,126.26,3.43289761]
[1764664641287,0.05038051,126.28,126.26,3.43289761]
[1764664641991,7.17798051,126.28,126.26,3.43289761]
[1764664642490,0.05038051,126.28,126.26,3.43289761]
[1764664643890,7.17838051,126.28,126.27,67.74]
[1764664644591,7.17838051,126.28,126.27,71.12]
[1764664645287,7.128,126.27,126.26,0.05289761]
[1764664645492,7.128,126.27,126.26,67.77289761]
[1764664645990,7.128,126.27,126.26,71.15289761]
[1764664646585,7.128,126.27,126.26,3.43289761]
[1764664657400,9.878,126.27,126.26,0.05289761]
[1764664659703,9.878,126.27,126.26,3.38289761]
[1764664660300,0.05038051,126.28,126.26,3.38289761]
[1764664661206,0.05038051,126.28,126.26,71.10289761]
[1764664661501,0.05038051,126.28,126.27,3.33]
[1764664662504,2.80038051,126.28,126.27,3.33]
[1764664662710,0.05038051,126.28,126.27,3.33]
[1764664663812,2.80038051,126.28,126.26,71.10289761]
[1764664664908,2.75,126.27,126.26,67.77289761]
[1764664665113,9.92798051,126.28,126.26,71.10289761]
[1764664665620,2.75,126.27,126.26,67.77289761]
[1764664665921,9.878,126.27,126.26,0.05289761]
[1764664666312,7.128,126.27,126.26,3.38289761]
[1764664671026,0.05038051,126.28,126.26,3.38289761]
[1764664673218,0.05038051,126.28,126.27,3.33]
[1764664676523,0.05038051,126.28,126.27,71.05]
[1764664680426,7.1262,126.31,126.28,3.33]
[1764664681420,0.05005467,126.31,126.29,3.33]
[1764664682228,0.05005467,126.31,126.3,3.33]
[1764664683635,2.8,126.36,126.3,3.33]
[1764664683837,2.8,126.36,126.32,3.33]
[1764664684029,7.1231,126.36,126.32,3.33]
[1764664684636,2.8,126.37,126.34,3.33]
[1764664685426,2.8,126.36,126.33,3.38788909]
[1764664685622,2.8,126.36,126.34,67.7]
[1764664686534,2.8,126.35,126.34,67.7]